{"text_format":"1","workbook":"xlsx","n_sheets":1,"sheets":["Pressupost Projecte Ba"],"not_rendered":{"charts":0,"images":1,"macros":1,"external_links":0,"defined_names":6,"comments":1,"pivot_tables":0},"unopened":[],"bounds":{"document_bytes":16777216,"sheet_cells":100000,"rows_first":2000,"rows_last":500,"rows_between":2000,"halvings":0,"cell_chars":16384,"cell_head_chars":4096},"cells_cut":0,"cells_raw":0,"read":"whole","date_system":"1900"}

{"sheet":"Pressupost Projecte Ba","index":0,"n_rows":115,"n_cols":6,"rows_kept":115,"cut":false,"hidden":false,"merged":[[0,2,0,3],[1,2,1,3],[2,2,3,3],[4,2,4,3],[97,0,97,3],[2,0,3,1],[5,2,5,3],[114,0,114,3],[99,0,99,3],[100,0,100,3],[101,0,101,3],[102,0,102,3],[103,0,103,3],[105,0,105,3],[106,0,106,3],[107,0,107,3],[109,0,109,3],[110,0,110,3],[112,0,112,3],[113,0,113,3],[108,0,108,2],[111,0,111,3],[104,0,104,3]]}
[null,null,"Documento básico 3"]
[null,null,"Ámbito temático \"B\": INTERCOOPERACIÓN"]
["CONVOCATORIA 2024 DEL PROGRAMA DE SUBVENCIONES DEL AYUNTAMIENTO DE BARCELONA PARA EL FORTALECIMIENTO DE LA ECONOMIA SOCIAL Y SOLIDARIA Y PARA LA INTERCOOPERACIÓN EN LA ESTRATEGIA #ESSBCN2030 - ENFORTIM L’ESS 2024\n",null,"Modalidad \"Ba\": Intercooperación de 2.º y mayor nivel: Proyectos promovidos por organizaciones de la economía social y solidaria o de las finanzas éticas de segundo nivel y superior que contribuyan al despliegue de la Estrategia ESSBCN2030 de Barcelona y a los objetivos estratégicos del PIESS 2024-2027 y tengan por destinatarias a sus organizaciones socias"]
[]
[null,null,"Atención: Rellenar las celdas en blanco y añadir las filas necesarias "]
[null,null,"Antes de rellenar, consultar anotaciones a pie de página"]
[]
["DATOS BÁSICOS"]
["Nombre de la persona jurídica",null,null,null,null,"  "]
["NIF de la persona jurídica"]
["Título del proyecto subvencionable"]
["Importe total del proyecto subvencionable"]
["Importe imputable a la subvención municipal"]
["Importe de la aportación / Cofinanciación de la organización",{"$f":"$B$12-$B$13","v":0}]
["% del importe solicitado respecto al total del proyecto subvencionable",{"$f":"B13/B12","v":{"$error":"#DIV/0!"}},"* La cuantía de la subvención otorgada no superará el 80% del gasto total del proyecto a subvencionar."]
[]
["PREVISIÓN DE GASTOS DEL PROYECTO SUBVENCIONABLE"]
["Partidas","Importe imputable a la subvención municipal","Importe de la aportación / Cofinanciación de la organización","Importe total del proyecto"]
["D1. Retribuciones y seguridad social (régimen general) del personal propio  vinculado directamente y de forma significativa al proyecto subvencionable (máximo 20% subvención)",{"$f":"SUM(B20:B23)","v":0},{"$f":"SUM(C20:C23)","v":0},{"$f":"DespesesProjecte[[#This Row],[Importe imputable a la subvención municipal]]+DespesesProjecte[[#This Row],[Importe de la aportación / Cofinanciación de la organización]]","v":0}]
[null,null,null,{"$f":"SUM(DespesesProjecte[[#This Row],[Importe imputable a la subvención municipal]],DespesesProjecte[[#This Row],[Importe de la aportación / Cofinanciación de la organización]])","v":0}]
[null,null,null,{"$f":"SUM(DespesesProjecte[[#This Row],[Importe imputable a la subvención municipal]],DespesesProjecte[[#This Row],[Importe de la aportación / Cofinanciación de la organización]])","v":0}]
[null,null,null,{"$f":"SUM(DespesesProjecte[[#This Row],[Importe imputable a la subvención municipal]],DespesesProjecte[[#This Row],[Importe de la aportación / Cofinanciación de la organización]])","v":0}]
[null,null,null,{"$f":"SUM(DespesesProjecte[[#This Row],[Importe imputable a la subvención municipal]],DespesesProjecte[[#This Row],[Importe de la aportación / Cofinanciación de la organización]])","v":0}]
["TOTAL DE GASTOS DE PERSONAL \nMáximo 20% del importe imputable a la subvención municipal si se trata de personal propio asignado al proyecto",{"$f":"B19","v":0},{"$f":"C19","v":0},{"$f":"D19","v":0}]
["D2. Trabajos realizados por profesionales y empresas externas directamente vinculadas al acompañamiento de procesos de la organización y con sus asociadas vinculadas a las acciones subvencionadas",{"$f":"SUM(B26:B28)","v":0},{"$f":"SUM(C26:C28)","v":0},{"$f":"SUM(DespesesProjecte[[#This Row],[Importe imputable a la subvención municipal]],DespesesProjecte[[#This Row],[Importe de la aportación / Cofinanciación de la organización]])","v":0}]
[null,null,null,{"$f":"SUM(DespesesProjecte[[#This Row],[Importe imputable a la subvención municipal]],DespesesProjecte[[#This Row],[Importe de la aportación / Cofinanciación de la organización]])","v":0}]
[null,null,null,{"$f":"SUM(DespesesProjecte[[#This Row],[Importe imputable a la subvención municipal]],DespesesProjecte[[#This Row],[Importe de la aportación / Cofinanciación de la organización]])","v":0}]
[null,null,null,{"$f":"SUM(DespesesProjecte[[#This Row],[Importe imputable a la subvención municipal]],DespesesProjecte[[#This Row],[Importe de la aportación / Cofinanciación de la organización]])","v":0}]
["D3. Alquiler de bienes inmuebles directamente vinculados al proyecto subvencionable",{"$f":"SUM(B30:B32)","v":0},{"$f":"SUM(C30:C32)","v":0},{"$f":"SUM(DespesesProjecte[[#This Row],[Importe imputable a la subvención municipal]],DespesesProjecte[[#This Row],[Importe de la aportación / Cofinanciación de la organización]])","v":0}]
[null,null,null,{"$f":"SUM(DespesesProjecte[[#This Row],[Importe imputable a la subvención municipal]],DespesesProjecte[[#This Row],[Importe de la aportación / Cofinanciación de la organización]])","v":0}]
[null,null,null,{"$f":"SUM(DespesesProjecte[[#This Row],[Importe imputable a la subvención municipal]],DespesesProjecte[[#This Row],[Importe de la aportación / Cofinanciación de la organización]])","v":0}]
[null,null,null,{"$f":"SUM(DespesesProjecte[[#This Row],[Importe imputable a la subvención municipal]],DespesesProjecte[[#This Row],[Importe de la aportación / Cofinanciación de la organización]])","v":0}]
["D4. Adquisición de materiales y bienes consumibles íntegramente imputables al proyecto subvencionable",{"$f":"SUM(B34:B36)","v":0},{"$f":"SUM(C34:C36)","v":0},{"$f":"SUM(DespesesProjecte[[#This Row],[Importe imputable a la subvención municipal]],DespesesProjecte[[#This Row],[Importe de la aportación / Cofinanciación de la organización]])","v":0}]
[null,null,null,{"$f":"SUM(DespesesProjecte[[#This Row],[Importe imputable a la subvención municipal]],DespesesProjecte[[#This Row],[Importe de la aportación / Cofinanciación de la organización]])","v":0}]
[null,null,null,{"$f":"SUM(DespesesProjecte[[#This Row],[Importe imputable a la subvención municipal]],DespesesProjecte[[#This Row],[Importe de la aportación / Cofinanciación de la organización]])","v":0}]
[null,null,null,{"$f":"SUM(DespesesProjecte[[#This Row],[Importe imputable a la subvención municipal]],DespesesProjecte[[#This Row],[Importe de la aportación / Cofinanciación de la organización]])","v":0}]
["D5. Publicidad y propaganda de las actividades directamente vinculadas al proyecto subvencionable",{"$f":"SUM(B38:B40)","v":0},{"$f":"SUM(C38:C40)","v":0},{"$f":"SUM(DespesesProjecte[[#This Row],[Importe imputable a la subvención municipal]],DespesesProjecte[[#This Row],[Importe de la aportación / Cofinanciación de la organización]])","v":0}]
[null,null,null,{"$f":"SUM(DespesesProjecte[[#This Row],[Importe imputable a la subvención municipal]],DespesesProjecte[[#This Row],[Importe de la aportación / Cofinanciación de la organización]])","v":0}]
[null,null,null,{"$f":"SUM(DespesesProjecte[[#This Row],[Importe imputable a la subvención municipal]],DespesesProjecte[[#This Row],[Importe de la aportación / Cofinanciación de la organización]])","v":0}]
[null,null,null,{"$f":"SUM(DespesesProjecte[[#This Row],[Importe imputable a la subvención municipal]],DespesesProjecte[[#This Row],[Importe de la aportación / Cofinanciación de la organización]])","v":0}]
["D6. Viajes y desplazamientos imputables a las actividades del proyecto (con un límite del 7% de la subvención)",{"$f":"SUM(B42:B44)","v":0},{"$f":"SUM(C42:C44)","v":0},{"$f":"SUM(DespesesProjecte[[#This Row],[Importe imputable a la subvención municipal]],DespesesProjecte[[#This Row],[Importe de la aportación / Cofinanciación de la organización]])","v":0}]
[null,null,null,{"$f":"SUM(DespesesProjecte[[#This Row],[Importe imputable a la subvención municipal]],DespesesProjecte[[#This Row],[Importe de la aportación / Cofinanciación de la organización]])","v":0}]
[null,null,null,{"$f":"SUM(DespesesProjecte[[#This Row],[Importe imputable a la subvención municipal]],DespesesProjecte[[#This Row],[Importe de la aportación / Cofinanciación de la organización]])","v":0}]
[null,null,null,{"$f":"SUM(DespesesProjecte[[#This Row],[Importe imputable a la subvención municipal]],DespesesProjecte[[#This Row],[Importe de la aportación / Cofinanciación de la organización]])","v":0}]
["D7. Gastos del informe de auditoría (con un límite máximo de 1.500 euros de la subvención)",{"$f":"SUM(B46:B48)","v":0},{"$f":"SUM(C46:C48)","v":0},{"$f":"SUM(DespesesProjecte[[#This Row],[Importe imputable a la subvención municipal]],DespesesProjecte[[#This Row],[Importe de la aportación / Cofinanciación de la organización]])","v":0}]
[null,null,null,{"$f":"SUM(DespesesProjecte[[#This Row],[Importe imputable a la subvención municipal]],DespesesProjecte[[#This Row],[Importe de la aportación / Cofinanciación de la organización]])","v":0}]
[null,null,null,{"$f":"SUM(DespesesProjecte[[#This Row],[Importe imputable a la subvención municipal]],DespesesProjecte[[#This Row],[Importe de la aportación / Cofinanciación de la organización]])","v":0}]
[null,null,null,{"$f":"SUM(DespesesProjecte[[#This Row],[Importe imputable a la subvención municipal]],DespesesProjecte[[#This Row],[Importe de la aportación / Cofinanciación de la organización]])","v":0}]
["D8. Otros gastos que de manera justificada puedan imputarse directamente al proyecto",{"$f":"SUM(B50:B52)","v":0},{"$f":"SUM(C50:C52)","v":0},{"$f":"SUM(DespesesProjecte[[#This Row],[Importe imputable a la subvención municipal]],DespesesProjecte[[#This Row],[Importe de la aportación / Cofinanciación de la organización]])","v":0}]
[null,null,null,{"$f":"SUM(DespesesProjecte[[#This Row],[Importe imputable a la subvención municipal]],DespesesProjecte[[#This Row],[Importe de la aportación / Cofinanciación de la organización]])","v":0}]
[null,null,null,{"$f":"SUM(DespesesProjecte[[#This Row],[Importe imputable a la subvención municipal]],DespesesProjecte[[#This Row],[Importe de la aportación / Cofinanciación de la organización]])","v":0}]
[null,null,null,{"$f":"SUM(DespesesProjecte[[#This Row],[Importe imputable a la subvención municipal]],DespesesProjecte[[#This Row],[Importe de la aportación / Cofinanciación de la organización]])","v":0}]
["TOTAL DE OTROS GASTOS DIRECTOS",{"$f":"SUM(B25,B29,B33,B37,B41,B45,B49)","v":0},{"$f":"SUM(C25,C29,C33,C37,C41,C45,C49)","v":0},{"$f":"SUM(D25,D29,D33,D37,D41,D45,D49)","v":0}]
["TOTAL GASTOS DIRECTOS  (aquellos que se identifican directamente con el proyecto subvencionable)",{"$f":"SUM(B24,B53)","v":0},{"$f":"SUM(C24,C53)","v":0},{"$f":"SUM(D24,D53)","v":0}]
["I1. Personal de soporte al proyecto (nóminas y seguridad social)",{"$f":"SUM(B56:B58)","v":0},{"$f":"SUM(C56:C58)","v":0},{"$f":"SUM(DespesesProjecte[[#This Row],[Importe imputable a la subvención municipal]],DespesesProjecte[[#This Row],[Importe de la aportación / Cofinanciación de la organización]])","v":0}]
[null,null,null,{"$f":"SUM(DespesesProjecte[[#This Row],[Importe imputable a la subvención municipal]],DespesesProjecte[[#This Row],[Importe de la aportación / Cofinanciación de la organización]])","v":0}]
[null,null,null,{"$f":"SUM(DespesesProjecte[[#This Row],[Importe imputable a la subvención municipal]],DespesesProjecte[[#This Row],[Importe de la aportación / Cofinanciación de la organización]])","v":0}]
[null,null,null,{"$f":"SUM(DespesesProjecte[[#This Row],[Importe imputable a la subvención municipal]],DespesesProjecte[[#This Row],[Importe de la aportación / Cofinanciación de la organización]])","v":0}]
["I2. Seguros",{"$f":"SUM(B60:B62)","v":0},{"$f":"SUM(C60:C62)","v":0},{"$f":"SUM(DespesesProjecte[[#This Row],[Importe imputable a la subvención municipal]],DespesesProjecte[[#This Row],[Importe de la aportación / Cofinanciación de la organización]])","v":0}]
[null,null,null,{"$f":"SUM(DespesesProjecte[[#This Row],[Importe imputable a la subvención municipal]],DespesesProjecte[[#This Row],[Importe de la aportación / Cofinanciación de la organización]])","v":0}]
[null,null,null,{"$f":"SUM(DespesesProjecte[[#This Row],[Importe imputable a la subvención municipal]],DespesesProjecte[[#This Row],[Importe de la aportación / Cofinanciación de la organización]])","v":0}]
[null,null,null,{"$f":"SUM(DespesesProjecte[[#This Row],[Importe imputable a la subvención municipal]],DespesesProjecte[[#This Row],[Importe de la aportación / Cofinanciación de la organización]])","v":0}]
["I3. Amortización",{"$f":"SUM(B64:B66)","v":0},{"$f":"SUM(C64:C66)","v":0},{"$f":"SUM(DespesesProjecte[[#This Row],[Importe imputable a la subvención municipal]],DespesesProjecte[[#This Row],[Importe de la aportación / Cofinanciación de la organización]])","v":0}]
[null,null,null,{"$f":"SUM(DespesesProjecte[[#This Row],[Importe imputable a la subvención municipal]],DespesesProjecte[[#This Row],[Importe de la aportación / Cofinanciación de la organización]])","v":0}]
[null,null,null,{"$f":"SUM(DespesesProjecte[[#This Row],[Importe imputable a la subvención municipal]],DespesesProjecte[[#This Row],[Importe de la aportación / Cofinanciación de la organización]])","v":0}]
[null,null,null,{"$f":"SUM(DespesesProjecte[[#This Row],[Importe imputable a la subvención municipal]],DespesesProjecte[[#This Row],[Importe de la aportación / Cofinanciación de la organización]])","v":0}]
["I4. Alquiler de bienes inmuebles",{"$f":"SUM(B68:B70)","v":0},{"$f":"SUM(C68:C70)","v":0},{"$f":"SUM(DespesesProjecte[[#This Row],[Importe imputable a la subvención municipal]],DespesesProjecte[[#This Row],[Importe de la aportación / Cofinanciación de la organización]])","v":0}]
[null,null,null,{"$f":"SUM(DespesesProjecte[[#This Row],[Importe imputable a la subvención municipal]],DespesesProjecte[[#This Row],[Importe de la aportación / Cofinanciación de la organización]])","v":0}]
[null,null,null,{"$f":"SUM(DespesesProjecte[[#This Row],[Importe imputable a la subvención municipal]],DespesesProjecte[[#This Row],[Importe de la aportación / Cofinanciación de la organización]])","v":0}]
[null,null,null,{"$f":"SUM(DespesesProjecte[[#This Row],[Importe imputable a la subvención municipal]],DespesesProjecte[[#This Row],[Importe de la aportación / Cofinanciación de la organización]])","v":0}]
["I5. Adquisición de materiales y bienes consumibles parcialmente imputables al proyecto",{"$f":"SUM(B72:B74)","v":0},{"$f":"SUM(C72:C74)","v":0},{"$f":"SUM(DespesesProjecte[[#This Row],[Importe imputable a la subvención municipal]],DespesesProjecte[[#This Row],[Importe de la aportación / Cofinanciación de la organización]])","v":0}]
[null,null,null,{"$f":"SUM(DespesesProjecte[[#This Row],[Importe imputable a la subvención municipal]],DespesesProjecte[[#This Row],[Importe de la aportación / Cofinanciación de la organización]])","v":0}]
[null,null,null,{"$f":"SUM(DespesesProjecte[[#This Row],[Importe imputable a la subvención municipal]],DespesesProjecte[[#This Row],[Importe de la aportación / Cofinanciación de la organización]])","v":0}]
[null,null,null,{"$f":"SUM(DespesesProjecte[[#This Row],[Importe imputable a la subvención municipal]],DespesesProjecte[[#This Row],[Importe de la aportación / Cofinanciación de la organización]])","v":0}]
["I6. Mantenimento de edificios y/o instalaciones",{"$f":"SUM(B76:B78)","v":0},{"$f":"SUM(C76:C78)","v":0},{"$f":"SUM(DespesesProjecte[[#This Row],[Importe imputable a la subvención municipal]],DespesesProjecte[[#This Row],[Importe de la aportación / Cofinanciación de la organización]])","v":0}]
[null,null,null,{"$f":"SUM(DespesesProjecte[[#This Row],[Importe imputable a la subvención municipal]],DespesesProjecte[[#This Row],[Importe de la aportación / Cofinanciación de la organización]])","v":0}]
[null,null,null,{"$f":"SUM(DespesesProjecte[[#This Row],[Importe imputable a la subvención municipal]],DespesesProjecte[[#This Row],[Importe de la aportación / Cofinanciación de la organización]])","v":0}]
[null,null,null,{"$f":"SUM(DespesesProjecte[[#This Row],[Importe imputable a la subvención municipal]],DespesesProjecte[[#This Row],[Importe de la aportación / Cofinanciación de la organización]])","v":0}]
["I7. Comunicaciones (teléfono, correos, conexión a internet)",{"$f":"SUM(B80:B82)","v":0},{"$f":"SUM(C80:C82)","v":0},{"$f":"SUM(DespesesProjecte[[#This Row],[Importe imputable a la subvención municipal]],DespesesProjecte[[#This Row],[Importe de la aportación / Cofinanciación de la organización]])","v":0}]
[null,null,null,{"$f":"SUM(DespesesProjecte[[#This Row],[Importe imputable a la subvención municipal]],DespesesProjecte[[#This Row],[Importe de la aportación / Cofinanciación de la organización]])","v":0}]
[null,null,null,{"$f":"SUM(DespesesProjecte[[#This Row],[Importe imputable a la subvención municipal]],DespesesProjecte[[#This Row],[Importe de la aportación / Cofinanciación de la organización]])","v":0}]
[null,null,null,{"$f":"SUM(DespesesProjecte[[#This Row],[Importe imputable a la subvención municipal]],DespesesProjecte[[#This Row],[Importe de la aportación / Cofinanciación de la organización]])","v":0}]
["I8. Gastos financieros",{"$f":"SUM(B84:B86)","v":0},{"$f":"SUM(C84:C86)","v":0},{"$f":"SUM(DespesesProjecte[[#This Row],[Importe imputable a la subvención municipal]],DespesesProjecte[[#This Row],[Importe de la aportación / Cofinanciación de la organización]])","v":0}]
[null,null,null,{"$f":"SUM(DespesesProjecte[[#This Row],[Importe imputable a la subvención municipal]],DespesesProjecte[[#This Row],[Importe de la aportación / Cofinanciación de la organización]])","v":0}]
[null,null,null,{"$f":"SUM(DespesesProjecte[[#This Row],[Importe imputable a la subvención municipal]],DespesesProjecte[[#This Row],[Importe de la aportación / Cofinanciación de la organización]])","v":0}]
[null,null,null,{"$f":"SUM(DespesesProjecte[[#This Row],[Importe imputable a la subvención municipal]],DespesesProjecte[[#This Row],[Importe de la aportación / Cofinanciación de la organización]])","v":0}]
["I9. Suministros",{"$f":"SUM(B88:B90)","v":0},{"$f":"SUM(C88:C90)","v":0},{"$f":"SUM(DespesesProjecte[[#This Row],[Importe imputable a la subvención municipal]],DespesesProjecte[[#This Row],[Importe de la aportación / Cofinanciación de la organización]])","v":0}]
[null,null,null,{"$f":"SUM(DespesesProjecte[[#This Row],[Importe imputable a la subvención municipal]],DespesesProjecte[[#This Row],[Importe de la aportación / Cofinanciación de la organización]])","v":0}]
[null,null,null,{"$f":"SUM(DespesesProjecte[[#This Row],[Importe imputable a la subvención municipal]],DespesesProjecte[[#This Row],[Importe de la aportación / Cofinanciación de la organización]])","v":0}]
[null,null,null,{"$f":"SUM(DespesesProjecte[[#This Row],[Importe imputable a la subvención municipal]],DespesesProjecte[[#This Row],[Importe de la aportación / Cofinanciación de la organización]])","v":0}]
["I10.  Trabajo realizado por otras empresas, parcialmente imputables al proyecto (limpieza, seguridad...)",{"$f":"SUM(B92:B94)","v":0},{"$f":"SUM(C92:C94)","v":0},{"$f":"SUM(DespesesProjecte[[#This Row],[Importe imputable a la subvención municipal]],DespesesProjecte[[#This Row],[Importe de la aportación / Cofinanciación de la organización]])","v":0}]
[null,null,null,{"$f":"SUM(DespesesProjecte[[#This Row],[Importe imputable a la subvención municipal]],DespesesProjecte[[#This Row],[Importe de la aportación / Cofinanciación de la organización]])","v":0}]
[null,null,null,{"$f":"SUM(DespesesProjecte[[#This Row],[Importe imputable a la subvención municipal]],DespesesProjecte[[#This Row],[Importe de la aportación / Cofinanciación de la organización]])","v":0}]
[null,null,null,{"$f":"SUM(DespesesProjecte[[#This Row],[Importe imputable a la subvención municipal]],DespesesProjecte[[#This Row],[Importe de la aportación / Cofinanciación de la organización]])","v":0}]
["TOTAL GASTOS INDIRECTOS (se podrán asignar al proyecto subvencionable utilizando un porcentaje de asignación) - Máximo 10 % del importe imputable a la subvención municipal",{"$f":"SUM(B55,B59,B63,B67,B71,B75,B79,B83,B87,B91)","v":0},{"$f":"SUM(C55,C59,C63,C67,C71,C75,C79,C83,C87,C91)","v":0},{"$f":"SUM(D55,D59,D63,D67,D71,D75,D79,D83,D87,D91)","v":0}]
["TOTAL DE GASTOS PREVISTOS",{"$f":"SUM(B95,B54)","v":0},{"$f":"SUM(C95,C54)","v":0},{"$f":"SUM(D95,D54)","v":0}]
[]
["Atención: En caso de personas jurídicas no firme este documento ahora.\nMás adelante firmaréis digitalmente este documento"]
[]
["Modalidad Ba: Intercooperación de 2.º y mayor nivel: Proyectos promovidos por organizaciones de la economía social y solidaria o de las finanzas éticas de segundo nivel y superior que contribuyan al despliegue de la Estrategia ESSBCN2030 de Barcelona y a los objetivos estratégicos del PIESS 2024-2027 y tengan por destinatarias a sus organizaciones socias"]
["1. La cuantía de la subvención otorgada no superará el 80% del gasto total del proyecto a subvencionar. "]
["2. El importe máximo de subvención para la modalidad Ba es 30.000€."]
["3. En caso de que la solicitud presentada sobrepase el importe máximo, se considerará como importe solicitado el máximo de lo establecido en la convocatoria."]
["4. Se limita con un máximo del 25%  el importe de la subvención para gastos de personal propio asignado al proyecto subvencionado (retribuciones y seguridad social-régimen general o autónomos)."]
["5. En el caso de alquileres de inmuebles, los gastos de alquiler se imputarán a los gastos indirectos, con el límite establecido para estos gastos indirectos."]
["6. Son imputables en esta modalidad los gastos indirectos, detallados en el apartado 13.3. de las bases reguladoras; con un máximo del 10% del importe de la subvención.\nEl caràcter subvencionable de la despesa d'amortització estarà subjecte a les condicions següents:\n> Que les subvencions no hagin contribuït a la compra dels béns.\n> Que l'amortització es calculi de conformitat amb les normes de comptabilitat generalment acceptades.\n> Que el cost es refereixi al període subvencionable.\n\n"]
["7.  Cuando se tenga que hacer gastos de más de 12.000 €, sin IVA, en el caso de prestaciones de servicios o entrega de bienes y para aquellos gastos de más de 30.000 €,  sin IVA, en el caso de ejecución de obras, se deberán incorporar tres presupuestos solicitados y argumentar el motivo de la adjudicación en el caso de no ser la propuesta más ventajosa económicamente."]
["8. Para las subvenciones otorgadas por importe igual o superior a 20.000 € es necesario un informe de auditoría para la justificación. El importe de este informe se considera gasto subvencionable, con un límite máximo de 1.500€."]
["9. Viajes y desplazamientos imputables a las actividades del proyecto (con un límite del 7% de la subvención)"]
["10. En  ningún caso se considerarán gastos subvencionables:\n> Los impuestos indirectos cuando sean susceptibles de recuperación o compensación.\n> Los gastos de inversión, incluídas las adquisiciones de bienes muebles.\n> Los gastos realizados con fecha anterior al inicio del proyecto y fecha posterior a la finalización del proyecto.\n> Otros gastos que se indiquen en la convocatoria."]
["11. La retribución de las personas contratadas en el marco del proyecto subvencionado no puede ser inferior al Salario Mínimo Interprofesional (SMI), ni a la estipulada al correspondiente convenio o marco normativo de referencia (punto 7 de las bases 2021: requisitos de los proyectos)."]
["12. Los materiales producidos de difusión, estudios, informes o materiales didácticos utilizados, etc., en el caso de tratarse de gasto elegible de la subvención, deberán tener licencia Creative Commons Compartir Igual (share alike), y esta no podrá tener la condición Sin Obras Derivadas (no derivate works)."]
["13. Los proyectos subvencionados deben fomentar actividades de interés público o social, las cuales deben ser gratuitas para las personas participantes o en ningún caso el precio debe suponer un obstáculo para su participación, buscando otras formas de acceso para personas con dificultades económicas. En el caso que haya algún tipo de lucro, deberán revertir en las propias actividades subvencionadas."]
["14. El Ayuntamiento de Barcelona y sus entidades municipales en ningún caso subvencionarán el mismo proyecto, ejecutado durante el mismo período, por ningún otro procedimiento de concesión que no sea el regulado por las bases reguladoras."]
["15. El/la beneficiario/aria no podrá alterar en ningún caso el destino de las subvenciones concedidas."]